[Event "Early-Titled-Tuesday-Blitz-April-02-2024"]
[Site "Chess.com"]
[Date "2024.04.02"]
[Round "5"]
[White "Brahianzevich"]
[Black "DefenceWinsChampionships"]
[Result "1-0"]
[WhiteElo "2531"]
[BlackElo "2312"]
[TimeControl "180+1"]
[EndTime "8:54:05 PDT"]
[Termination "Brahianzevich won on time"]

1. e4 {[%clk 0:02:58.8]} 1... c5 {[%clk 0:02:59.8]} 2. Nf3 {[%clk 0:02:58.5]}
2... e6 {[%clk 0:03:00.3]} 3. Nc3 {[%clk 0:02:58.3]} 3... a6 {[%clk 0:02:59.8]}
4. Be2 {[%clk 0:02:56.5]} 4... Nc6 {[%clk 0:02:59.1]} 5. d4 {[%clk 0:02:56.3]}
5... cxd4 {[%clk 0:02:58.2]} 6. Nxd4 {[%clk 0:02:57.2]} 6... Qc7 {[%clk
0:02:57.9]} 7. O-O {[%clk 0:02:56.9]} 7... Nf6 {[%clk 0:02:56.4]} 8. Be3 {[%clk
0:02:57.5]} 8... Bb4 {[%clk 0:02:51.4]} 9. Nxc6 {[%clk 0:02:57.2]} 9... bxc6
{[%clk 0:02:50.9]} 10. Qd4 {[%clk 0:02:56.8]} 10... c5 {[%clk 0:02:09.2]} 11.
Qc4 {[%clk 0:02:49.8]} 11... Bb7 {[%clk 0:02:09.1]} 12. a3 {[%clk 0:02:47.1]}
12... Ba5 {[%clk 0:01:56.4]} 13. Qxc5 {[%clk 0:02:22.1]} 13... Qxc5 {[%clk
0:01:06.6]} 14. Bxc5 {[%clk 0:02:21.8]} 14... Rc8 {[%clk 0:01:07.2]} 15. Bb4
{[%clk 0:02:06.2]} 15... Bxb4 {[%clk 0:00:51.6]} 16. axb4 {[%clk 0:02:07.1]}
16... Nxe4 {[%clk 0:00:51.2]} 17. Nxe4 {[%clk 0:02:07.2]} 17... Bxe4 {[%clk
0:00:50.7]} 18. c3 {[%clk 0:02:07.8]} 18... Bb7 {[%clk 0:00:44.1]} 19. Bxa6
{[%clk 0:02:06.7]} 19... Bxa6 {[%clk 0:00:44.1]} 20. Rxa6 {[%clk 0:02:07.6]}
20... Ke7 {[%clk 0:00:40.3]} 21. Ra7 {[%clk 0:02:06.6]} 21... Ra8 {[%clk
0:00:40.2]} 22. Rfa1 {[%clk 0:02:05.8]} 22... Rxa7 {[%clk 0:00:40.5]} 23. Rxa7
{[%clk 0:02:06.7]} 23... Rb8 {[%clk 0:00:37.8]} 24. f3 {[%clk 0:01:59]} 24...
Kd6 {[%clk 0:00:34.6]} 25. Kf2 {[%clk 0:01:58.5]} 25... f5 {[%clk 0:00:17.7]}
26. f4 {[%clk 0:01:53]} 26... h6 {[%clk 0:00:17.1]} 27. h4 {[%clk 0:01:51.4]}
27... g6 {[%clk 0:00:17.2]} 28. Ke3 {[%clk 0:01:51]} 28... Rb6 {[%clk
0:00:14.8]} 29. Kd4 {[%clk 0:01:49.1]} 29... Kc6 {[%clk 0:00:15]} 30. Ke5 {[%clk
0:01:46.7]} 30... g5 {[%clk 0:00:01.9]} 31. hxg5 {[%clk 0:01:45.8]} 31... hxg5
{[%clk 0:00:02.8]} 32. fxg5 {[%clk 0:01:46.3]} 32... Rb5+ {[%clk 0:00:02.6]} 33.
Kf6 {[%clk 0:01:45.2]} 33... f4 {[%clk 0:00:03]} 34. g6 {[%clk 0:01:42.5]} 34...
Rf5+ {[%clk 0:00:02.6]} 35. Ke7 {[%clk 0:01:40.5]} 1-0

[Event "Early-Titled-Tuesday-Blitz-April-02-2024"]
[Site "Chess.com"]
[Date "2024.04.02"]
[Round "5"]
[White "Attacker_2006"]
[Black "kachsona"]
[Result "0-1"]
[WhiteElo "2435"]
[BlackElo "2606"]
[TimeControl "180+1"]
[EndTime "8:54:07 PDT"]
[Termination "kachsona won by resignation"]

1. e4 {[%clk 0:03:00.9]} 1... d6 {[%clk 0:02:55.5]} 2. d4 {[%clk 0:03:00.2]}
2... Nf6 {[%clk 0:02:55.6]} 3. Nc3 {[%clk 0:03:00.5]} 3... Nbd7 {[%clk
0:02:55.6]} 4. f4 {[%clk 0:02:59.4]} 4... e5 {[%clk 0:02:55.7]} 5. Nf3 {[%clk
0:02:59.3]} 5... exd4 {[%clk 0:02:55.6]} 6. Qxd4 {[%clk 0:02:59.9]} 6... c6
{[%clk 0:02:53.1]} 7. Bd3 {[%clk 0:02:59.2]} 7... d5 {[%clk 0:02:49.3]} 8. e5
{[%clk 0:02:58.3]} 8... Bc5 {[%clk 0:02:47.8]} 9. Qa4 {[%clk 0:02:57.3]} 9...
Ng4 {[%clk 0:02:32.9]} 10. Nd1 {[%clk 0:02:45.5]} 10... b5 {[%clk 0:02:13.6]}
11. Qb3 {[%clk 0:02:44.8]} 11... Qb6 {[%clk 0:02:13.6]} 12. h3 {[%clk
0:02:43.8]} 12... Nf2 {[%clk 0:02:10.9]} 13. Nxf2 {[%clk 0:02:43.8]} 13... Bxf2+
{[%clk 0:02:11]} 14. Ke2 {[%clk 0:02:44.5]} 14... Nc5 {[%clk 0:01:57.5]} 15. Qc3
{[%clk 0:02:40.6]} 15... b4 {[%clk 0:01:53.4]} 16. Qd2 {[%clk 0:02:36.3]} 16...
Ne4 {[%clk 0:01:53.4]} 17. Bxe4 {[%clk 0:02:20.3]} 17... dxe4 {[%clk 0:01:54.3]}
18. c4 {[%clk 0:00:49]} 18... bxc3 {[%clk 0:01:52.5]} 19. Qxc3 {[%clk
0:00:48.3]} 19... Ba6+ {[%clk 0:01:51.4]} 20. Kd2 {[%clk 0:00:48.7]} 20... Rd8+
{[%clk 0:01:46.5]} 21. Kc2 {[%clk 0:00:48]} 21... Bd3+ {[%clk 0:01:46.2]} 22.
Kd1 {[%clk 0:00:47.3]} 22... exf3 {[%clk 0:01:42.1]} 23. gxf3 {[%clk 0:00:45.8]}
23... Bb5+ {[%clk 0:01:17.7]} 24. Kc2 {[%clk 0:00:39.1]} 24... Rd3 {[%clk
0:01:08.7]} 25. Qxd3 {[%clk 0:00:34.6]} 25... Bxd3+ {[%clk 0:01:07.5]} 26. Kxd3
{[%clk 0:00:35.2]} 26... Qb5+ {[%clk 0:01:04.2]} 27. Kd2 {[%clk 0:00:29]} 27...
O-O {[%clk 0:01:01.2]} 0-1

[Event "Early-Titled-Tuesday-Blitz-April-02-2024"]
[Site "Chess.com"]
[Date "2024.04.02"]
[Round "5"]
[White "JCVanDamme10"]
[Black "Shahdad2007"]
[Result "1-0"]
[WhiteElo "2356"]
[BlackElo "2575"]
[TimeControl "180+1"]
[EndTime "8:54:07 PDT"]
[Termination "JCVanDamme10 won on time"]

1. e4 {[%clk 0:03:00.9]} 1... c5 {[%clk 0:02:57.2]} 2. Nf3 {[%clk 0:03:00.7]}
2... e6 {[%clk 0:02:56.7]} 3. d4 {[%clk 0:03:01.1]} 3... cxd4 {[%clk 0:02:57.6]}
4. Nxd4 {[%clk 0:03:01.4]} 4... Nc6 {[%clk 0:02:58.5]} 5. Nc3 {[%clk 0:03:01.3]}
5... Qc7 {[%clk 0:02:58.9]} 6. Ndb5 {[%clk 0:03:00]} 6... Qb8 {[%clk 0:02:58.4]}
7. Be3 {[%clk 0:03:00.6]} 7... a6 {[%clk 0:02:58.9]} 8. Bb6 {[%clk 0:03:01.1]}
8... axb5 {[%clk 0:02:59.5]} 9. Nxb5 {[%clk 0:03:00.5]} 9... Bb4+ {[%clk
0:03:00.1]} 10. c3 {[%clk 0:03:00.8]} 10... Ba5 {[%clk 0:03:00.8]} 11. Nc7+
{[%clk 0:02:58.7]} 11... Qxc7 {[%clk 0:03:01.2]} 12. Bxc7 {[%clk 0:02:58.4]}
12... Bxc7 {[%clk 0:03:02.1]} 13. Bb5 {[%clk 0:02:56.5]} 13... Nge7 {[%clk
0:03:00.2]} 14. O-O {[%clk 0:02:55.9]} 14... O-O {[%clk 0:02:59.6]} 15. Kh1
{[%clk 0:02:54.7]} 15... d5 {[%clk 0:02:56.4]} 16. f3 {[%clk 0:02:53.9]} 16...
dxe4 {[%clk 0:02:38.3]} 17. fxe4 {[%clk 0:02:52.9]} 17... e5 {[%clk 0:02:38.5]}
18. a4 {[%clk 0:02:47.6]} 18... Be6 {[%clk 0:02:37.5]} 19. b4 {[%clk 0:02:46.5]}
19... Ng6 {[%clk 0:02:31.1]} 20. a5 {[%clk 0:02:45.3]} 20... Nf4 {[%clk
0:02:29.6]} 21. a6 {[%clk 0:02:44.1]} 21... Nd8 {[%clk 0:02:22.2]} 22. axb7
{[%clk 0:02:32.6]} 22... Nxb7 {[%clk 0:02:21.8]} 23. Rxa8 {[%clk 0:02:29.1]}
23... Rxa8 {[%clk 0:02:20.8]} 24. Bc6 {[%clk 0:02:29.6]} 24... Rb8 {[%clk
0:02:14.9]} 25. Qa4 {[%clk 0:02:20.9]} 25... Nd8 {[%clk 0:01:42.8]} 26. Bd7
{[%clk 0:02:12.9]} 26... Bc4 {[%clk 0:01:32.4]} 27. Rd1 {[%clk 0:02:11.3]} 27...
Nd3 {[%clk 0:01:29.8]} 28. Qa7 {[%clk 0:02:04.6]} 28... Bd6 {[%clk 0:01:29.4]}
29. Qe3 {[%clk 0:01:52.4]} 29... Rb7 {[%clk 0:00:30.9]} 30. Bg4 {[%clk
0:01:47.5]} 30... f5 {[%clk 0:00:17.8]} 31. Bxf5 {[%clk 0:01:33.9]} 1-0

[Event "Early-Titled-Tuesday-Blitz-April-02-2024"]
[Site "Chess.com"]
[Date "2024.04.02"]
[Round "5"]
[White "Oleksandr_Bortnyk"]
[Black "noblerone"]
[Result "1-0"]
[WhiteElo "3027"]
[BlackElo "2549"]
[TimeControl "180+1"]
[EndTime "8:54:13 PDT"]
[Termination "Oleksandr_Bortnyk won by resignation"]

1. e4 {[%clk 0:03:00.9]} 1... Nf6 {[%clk 0:02:55.5]} 2. e5 {[%clk 0:02:57.6]}
2... Nd5 {[%clk 0:02:54.7]} 3. d4 {[%clk 0:02:55.4]} 3... d6 {[%clk 0:02:52.8]}
4. Nf3 {[%clk 0:02:55.7]} 4... Bg4 {[%clk 0:02:43.7]} 5. exd6 {[%clk 0:02:51.2]}
5... cxd6 {[%clk 0:02:38.2]} 6. c4 {[%clk 0:02:46.8]} 6... Nf6 {[%clk
0:02:36.8]} 7. h3 {[%clk 0:02:45.6]} 7... Bxf3 {[%clk 0:02:32.9]} 8. Qxf3 {[%clk
0:02:46.5]} 8... Nc6 {[%clk 0:02:33.2]} 9. Be3 {[%clk 0:02:42.5]} 9... e6 {[%clk
0:02:27.1]} 10. Nc3 {[%clk 0:02:42.7]} 10... Be7 {[%clk 0:02:15.6]} 11. Bd3
{[%clk 0:02:42.9]} 11... a6 {[%clk 0:01:47.3]} 12. O-O {[%clk 0:02:42.7]} 12...
O-O {[%clk 0:01:40.4]} 13. Rad1 {[%clk 0:02:42.8]} 13... d5 {[%clk 0:01:39.2]}
14. b3 {[%clk 0:02:35.4]} 14... Rc8 {[%clk 0:01:28.3]} 15. c5 {[%clk 0:02:17.9]}
15... e5 {[%clk 0:01:17]} 16. Bf5 {[%clk 0:01:41.8]} 16... e4 {[%clk 0:00:39]}
17. Qg3 {[%clk 0:01:41]} 17... Rb8 {[%clk 0:00:32.3]} 18. Bh6 {[%clk 0:01:39.6]}
18... Ne8 {[%clk 0:00:29.2]} 19. Bf4 {[%clk 0:01:34.2]} 19... Ra8 {[%clk
0:00:27.8]} 20. Na4 {[%clk 0:01:31.3]} 20... Nf6 {[%clk 0:00:24.2]} 21. Bc7
{[%clk 0:01:30.1]} 21... Qe8 {[%clk 0:00:23]} 22. Nb6 {[%clk 0:01:30.2]} 22...
Ra7 {[%clk 0:00:19.1]} 23. f3 {[%clk 0:01:20.3]} 23... Nh5 {[%clk 0:00:16]} 24.
Qh2 {[%clk 0:01:19.3]} 24... e3 {[%clk 0:00:13.9]} 25. Bd7 {[%clk 0:01:15.9]}
25... e2 {[%clk 0:00:10.5]} 26. Bxe8 {[%clk 0:01:16.2]} 26... exf1=Q+ {[%clk
0:00:10.6]} 27. Kxf1 {[%clk 0:01:15.8]} 27... Rxe8 {[%clk 0:00:11.5]} 28. Nxd5
{[%clk 0:01:16.2]} 28... Bg5 {[%clk 0:00:10.5]} 29. h4 {[%clk 0:01:14.1]} 29...
Bh6 {[%clk 0:00:09.3]} 30. g4 {[%clk 0:01:14.7]} 1-0

[Event "Early-Titled-Tuesday-Blitz-April-02-2024"]
[Site "Chess.com"]
[Date "2024.04.02"]
[Round "5"]
[White "davidkalashian"]
[Black "Kiborg95"]
[Result "1-0"]
[WhiteElo "2674"]
[BlackElo "2845"]
[TimeControl "180+1"]
[EndTime "8:54:14 PDT"]
[Termination "davidkalashian won by resignation"]

1. d4 {[%clk 0:03:00.1]} 1... d6 {[%clk 0:02:59.6]} 2. e4 {[%clk 0:02:59.7]}
2... Nf6 {[%clk 0:02:59.2]} 3. Nc3 {[%clk 0:03:00]} 3... e5 {[%clk 0:02:59]} 4.
Nf3 {[%clk 0:02:56.9]} 4... Nbd7 {[%clk 0:02:58.9]} 5. g3 {[%clk 0:02:44.3]}
5... c6 {[%clk 0:02:58.4]} 6. Bg2 {[%clk 0:02:44.5]} 6... b5 {[%clk 0:02:58.4]}
7. O-O {[%clk 0:02:40.7]} 7... Bb7 {[%clk 0:02:55.7]} 8. a3 {[%clk 0:02:39.1]}
8... Be7 {[%clk 0:02:54.4]} 9. Nh4 {[%clk 0:02:35.7]} 9... g6 {[%clk 0:02:44.3]}
10. Bh6 {[%clk 0:02:30.5]} 10... Bf8 {[%clk 0:02:42.8]} 11. Bxf8 {[%clk
0:02:29.2]} 11... Kxf8 {[%clk 0:02:43.7]} 12. dxe5 {[%clk 0:02:27.3]} 12... dxe5
{[%clk 0:02:42.9]} 13. Qd2 {[%clk 0:02:09.6]} 13... Kg7 {[%clk 0:02:41.9]} 14.
Rad1 {[%clk 0:02:09.9]} 14... h6 {[%clk 0:02:34.7]} 15. f4 {[%clk 0:02:02.5]}
15... Qe7 {[%clk 0:02:28]} 16. Bh3 {[%clk 0:01:51.4]} 16... Rhd8 {[%clk
0:02:14.8]} 17. Qf2 {[%clk 0:01:47.6]} 17... a5 {[%clk 0:01:58.1]} 18. Bxd7
{[%clk 0:01:31.5]} 18... Nxd7 {[%clk 0:01:35.3]} 19. f5 {[%clk 0:01:29.2]} 19...
Qc5 {[%clk 0:00:49.4]} 20. fxg6 {[%clk 0:01:12.2]} 20... Qxf2+ {[%clk
0:00:48.8]} 21. Rxf2 {[%clk 0:01:11.8]} 21... fxg6 {[%clk 0:00:37.1]} 22. Rfd2
{[%clk 0:01:02.4]} 22... Bc8 {[%clk 0:00:25.1]} 23. Rd6 {[%clk 0:01:01.2]} 23...
Ra6 {[%clk 0:00:24.3]} 24. Rxg6+ {[%clk 0:01:00.4]} 24... Kh7 {[%clk 0:00:24.5]}
25. Rdd6 {[%clk 0:00:56.5]} 1-0

[Event "Early-Titled-Tuesday-Blitz-April-02-2024"]
[Site "Chess.com"]
[Date "2024.04.02"]
[Round "5"]
[White "Kratos031"]
[Black "VeraVujovic"]
[Result "0-1"]
[WhiteElo "2484"]
[BlackElo "2236"]
[TimeControl "180+1"]
[EndTime "8:54:21 PDT"]
[Termination "VeraVujovic won by resignation"]

1. d4 {[%clk 0:03:00.9]} 1... d5 {[%clk 0:02:59.3]} 2. c4 {[%clk 0:03:00.7]}
2... dxc4 {[%clk 0:03:00.2]} 3. Nf3 {[%clk 0:03:00.7]} 3... Nf6 {[%clk
0:02:58.7]} 4. e3 {[%clk 0:03:01.1]} 4... e6 {[%clk 0:02:58.8]} 5. Bxc4 {[%clk
0:03:01.2]} 5... c5 {[%clk 0:02:59.5]} 6. O-O {[%clk 0:03:01.2]} 6... a6 {[%clk
0:03:00]} 7. Re1 {[%clk 0:03:00.1]} 7... Nc6 {[%clk 0:02:54.2]} 8. a4 {[%clk
0:02:58]} 8... Be7 {[%clk 0:02:49.6]} 9. Nc3 {[%clk 0:02:57.4]} 9... O-O {[%clk
0:02:49.5]} 10. b3 {[%clk 0:02:52.1]} 10... b6 {[%clk 0:02:49.3]} 11. Bb2 {[%clk
0:02:52.3]} 11... Bb7 {[%clk 0:02:49.5]} 12. Rc1 {[%clk 0:02:52.8]} 12... Rc8
{[%clk 0:02:41.3]} 13. Qe2 {[%clk 0:02:51.4]} 13... cxd4 {[%clk 0:02:32.5]} 14.
exd4 {[%clk 0:02:49.3]} 14... Nxd4 {[%clk 0:02:28.4]} 15. Nxd4 {[%clk
0:02:47.5]} 15... Qxd4 {[%clk 0:02:29.3]} 16. Nd5 {[%clk 0:02:33.5]} 16... Qc5
{[%clk 0:02:15.6]} 17. Nxe7+ {[%clk 0:00:50]} 17... Qxe7 {[%clk 0:02:13.8]} 18.
Bxa6 {[%clk 0:00:48.3]} 18... Bxa6 {[%clk 0:01:53.9]} 19. Qxa6 {[%clk
0:00:49.2]} 19... Rxc1 {[%clk 0:01:53.9]} 20. Rxc1 {[%clk 0:00:47.8]} 20... Qb4
{[%clk 0:01:53.6]} 21. Qb5 {[%clk 0:00:41.5]} 21... Qxb5 {[%clk 0:01:49.5]} 22.
axb5 {[%clk 0:00:42.4]} 22... Nd5 {[%clk 0:01:48.9]} 23. Rc6 {[%clk 0:00:39.5]}
23... h6 {[%clk 0:01:41.3]} 24. g3 {[%clk 0:00:34.9]} 24... Ra8 {[%clk
0:01:37.7]} 25. Bd4 {[%clk 0:00:31.4]} 25... Ra5 {[%clk 0:01:34.1]} 26. Bxb6
{[%clk 0:00:17.9]} 26... Rxb5 {[%clk 0:01:33.2]} 27. Bd4 {[%clk 0:00:17.7]}
27... Rxb3 {[%clk 0:01:32.2]} 28. Rc8+ {[%clk 0:00:18.3]} 28... Kh7 {[%clk
0:01:31.3]} 29. Rd8 {[%clk 0:00:19.2]} 29... Rd3 {[%clk 0:01:29.4]} 30. Be5
{[%clk 0:00:18.6]} 30... Rd1+ {[%clk 0:01:28.4]} 31. Kg2 {[%clk 0:00:17.7]}
31... Ne3+ {[%clk 0:01:27.5]} 32. fxe3 {[%clk 0:00:18.2]} 32... Rxd8 {[%clk
0:01:28.1]} 33. Kf3 {[%clk 0:00:19.1]} 33... Kg6 {[%clk 0:01:27.2]} 34. h4
{[%clk 0:00:19.2]} 34... f6 {[%clk 0:01:25.6]} 35. Bd4 {[%clk 0:00:18.8]} 35...
e5 {[%clk 0:01:25.4]} 36. Bc3 {[%clk 0:00:18.8]} 36... Rd3 {[%clk 0:01:23]} 37.
Bb4 {[%clk 0:00:18.6]} 37... h5 {[%clk 0:01:22.8]} 38. Ke4 {[%clk 0:00:18.6]}
38... Rb3 {[%clk 0:01:18]} 0-1

[Event "Early-Titled-Tuesday-Blitz-April-02-2024"]
[Site "Chess.com"]
[Date "2024.04.02"]
[Round "5"]
[White "RodTwinkz"]
[Black "SuperJesus88"]
[Result "0-1"]
[WhiteElo "2700"]
[BlackElo "2535"]
[TimeControl "180+1"]
[EndTime "8:54:26 PDT"]
[Termination "SuperJesus88 won by resignation"]

1. e4 {[%clk 0:03:00.9]} 1... e6 {[%clk 0:02:59.5]} 2. Nc3 {[%clk 0:03:00.2]}
2... d5 {[%clk 0:03:00.1]} 3. f4 {[%clk 0:02:59.2]} 3... Nf6 {[%clk 0:03:00]} 4.
e5 {[%clk 0:02:59]} 4... Nfd7 {[%clk 0:02:59]} 5. Nf3 {[%clk 0:02:59.3]} 5... c5
{[%clk 0:02:59.2]} 6. g3 {[%clk 0:02:59.1]} 6... Nc6 {[%clk 0:02:59.4]} 7. Bh3
{[%clk 0:02:59.5]} 7... g6 {[%clk 0:02:52.7]} 8. O-O {[%clk 0:02:58.6]} 8... h5
{[%clk 0:02:53.2]} 9. d3 {[%clk 0:02:57.9]} 9... Be7 {[%clk 0:02:51.3]} 10. Ne2
{[%clk 0:02:54]} 10... b5 {[%clk 0:02:48.8]} 11. d4 {[%clk 0:02:44.1]} 11... Bb7
{[%clk 0:02:44.3]} 12. c3 {[%clk 0:02:42.2]} 12... b4 {[%clk 0:02:40.4]} 13. Rf2
{[%clk 0:02:41.1]} 13... a5 {[%clk 0:02:40.3]} 14. Be3 {[%clk 0:02:36.4]} 14...
Qb6 {[%clk 0:02:38.2]} 15. Bf1 {[%clk 0:02:30.3]} 15... Ba6 {[%clk 0:02:36.1]}
16. Nc1 {[%clk 0:02:24.9]} 16... Bxf1 {[%clk 0:02:35]} 17. Qxf1 {[%clk
0:02:25.5]} 17... c4 {[%clk 0:02:28.9]} 18. Ne2 {[%clk 0:02:18]} 18... a4 {[%clk
0:02:27.5]} 19. a3 {[%clk 0:02:11.4]} 19... bxa3 {[%clk 0:02:24.5]} 20. bxa3
{[%clk 0:02:12.3]} 20... Na5 {[%clk 0:02:24.8]} 21. h3 {[%clk 0:02:05.4]} 21...
Nb3 {[%clk 0:02:24.6]} 22. Ra2 {[%clk 0:02:05.1]} 22... O-O-O {[%clk 0:02:23.7]}
23. Ne1 {[%clk 0:01:51.9]} 23... Nb8 {[%clk 0:02:03]} 24. Nc2 {[%clk 0:01:50.8]}
24... Na6 {[%clk 0:02:03.3]} 25. Nb4 {[%clk 0:01:50.2]} 25... Nc7 {[%clk
0:01:59.1]} 26. Kg2 {[%clk 0:01:44.9]} 26... Nb5 {[%clk 0:01:59.2]} 27. Qd1
{[%clk 0:01:39.5]} 27... Kb7 {[%clk 0:01:55.1]} 28. Qc2 {[%clk 0:01:37.9]} 28...
Bxb4 {[%clk 0:01:47.6]} 29. axb4 {[%clk 0:01:37.4]} 29... a3 {[%clk 0:01:44.5]}
30. Nc1 {[%clk 0:01:31.6]} 30... Nxc1 {[%clk 0:01:40]} 31. Bxc1 {[%clk
0:01:32.5]} 31... Ra8 {[%clk 0:01:36.6]} 32. Rf3 {[%clk 0:01:14.9]} 32... Qa6
{[%clk 0:01:35]} 33. Qf2 {[%clk 0:01:06.8]} 33... Qa4 {[%clk 0:01:31.8]} 34. g4
{[%clk 0:01:06.6]} 34... hxg4 {[%clk 0:01:31.1]} 35. hxg4 {[%clk 0:01:07.5]}
35... Qd1 {[%clk 0:01:28.5]} 36. Qg1 {[%clk 0:00:49.9]} 36... Qxg1+ {[%clk
0:01:22.4]} 37. Kxg1 {[%clk 0:00:50.8]} 37... Rh4 {[%clk 0:01:22.7]} 38. Rg3
{[%clk 0:00:44.6]} 38... Rah8 {[%clk 0:01:19.6]} 39. Bd2 {[%clk 0:00:44.6]}
39... Rh1+ {[%clk 0:01:14]} 40. Kf2 {[%clk 0:00:44.5]} 40... R8h2+ {[%clk
0:01:14.3]} 41. Rg2 {[%clk 0:00:44.3]} 41... Rxg2+ {[%clk 0:01:14.6]} 42. Kxg2
{[%clk 0:00:45.2]} 42... Rb1 {[%clk 0:01:14.7]} 0-1

[Event "Early-Titled-Tuesday-Blitz-April-02-2024"]
[Site "Chess.com"]
[Date "2024.04.02"]
[Round "5"]
[White "Msb2"]
[Black "Tugrik1969"]
[Result "1-0"]
[WhiteElo "3014"]
[BlackElo "2548"]
[TimeControl "180+1"]
[EndTime "8:54:28 PDT"]
[Termination "Msb2 won on time"]

1. d4 {[%clk 0:03:00.9]} 1... d5 {[%clk 0:02:59.5]} 2. c4 {[%clk 0:03:01.5]}
2... e6 {[%clk 0:02:59.8]} 3. Nc3 {[%clk 0:03:01.8]} 3... a6 {[%clk 0:02:59]} 4.
e4 {[%clk 0:03:01.7]} 4... dxe4 {[%clk 0:02:57.5]} 5. Nxe4 {[%clk 0:03:02.6]}
5... Bb4+ {[%clk 0:02:57.9]} 6. Nc3 {[%clk 0:03:03]} 6... c5 {[%clk 0:02:57.4]}
7. a3 {[%clk 0:03:03.6]} 7... Ba5 {[%clk 0:02:56.8]} 8. Nf3 {[%clk 0:03:04.1]}
8... Nf6 {[%clk 0:02:53.1]} 9. Be3 {[%clk 0:03:04.3]} 9... Ne4 {[%clk
0:02:30.1]} 10. Qc2 {[%clk 0:03:02.6]} 10... Nxc3 {[%clk 0:02:25.9]} 11. bxc3
{[%clk 0:03:03.5]} 11... cxd4 {[%clk 0:02:25.3]} 12. Nxd4 {[%clk 0:03:00]} 12...
e5 {[%clk 0:02:10.6]} 13. Nb3 {[%clk 0:02:57]} 13... Nc6 {[%clk 0:01:49.7]} 14.
Rd1 {[%clk 0:02:56.1]} 14... Qc7 {[%clk 0:01:45]} 15. Bc5 {[%clk 0:02:52.4]}
15... Nd4 {[%clk 0:01:24.7]} 16. Bxd4 {[%clk 0:02:46.4]} 16... exd4 {[%clk
0:01:24.1]} 17. Rxd4 {[%clk 0:02:47.3]} 17... Be6 {[%clk 0:01:22.1]} 18. Be2
{[%clk 0:02:45.5]} 18... O-O {[%clk 0:01:18.5]} 19. O-O {[%clk 0:02:45.6]} 19...
Rac8 {[%clk 0:01:18.6]} 20. Nxa5 {[%clk 0:02:39.4]} 20... Qxa5 {[%clk
0:01:18.2]} 21. Qb2 {[%clk 0:02:40.1]} 21... Rc7 {[%clk 0:01:01.9]} 22. Qb4
{[%clk 0:02:40]} 22... Qe5 {[%clk 0:00:58.4]} 23. Bf3 {[%clk 0:02:37.8]} 23...
Rfc8 {[%clk 0:00:50]} 24. Bxb7 {[%clk 0:02:31.1]} 24... Rxc4 {[%clk 0:00:31.5]}
25. Bxc8 {[%clk 0:02:25.8]} 25... Rxc8 {[%clk 0:00:25.2]} 26. Qd6 {[%clk
0:02:23.2]} 26... Qg5 {[%clk 0:00:22.7]} 27. f4 {[%clk 0:02:19.1]} 27... Qf6
{[%clk 0:00:21.2]} 28. f5 {[%clk 0:02:19.3]} 28... Bc4 {[%clk 0:00:17.4]} 29.
Qxf6 {[%clk 0:02:19.4]} 29... gxf6 {[%clk 0:00:18.3]} 30. Rfd1 {[%clk
0:02:18.8]} 30... Kg7 {[%clk 0:00:17.7]} 31. Rg4+ {[%clk 0:02:15.3]} 31... Kf8
{[%clk 0:00:16.4]} 32. Rd6 {[%clk 0:02:15.9]} 32... Be2 {[%clk 0:00:14.2]} 33.
Re4 {[%clk 0:02:15.9]} 33... Bb5 {[%clk 0:00:10.9]} 34. Re3 {[%clk 0:02:09.1]}
34... Kg7 {[%clk 0:00:10.3]} 35. Rg3+ {[%clk 0:02:09]} 35... Kf8 {[%clk
0:00:10.6]} 36. Rxf6 {[%clk 0:02:09.9]} 36... Rc5 {[%clk 0:00:11]} 37. h4 {[%clk
0:02:04.3]} 37... Ke7 {[%clk 0:00:10.8]} 38. Rh6 {[%clk 0:02:05]} 38... Rxf5
{[%clk 0:00:10.7]} 39. Rxh7 {[%clk 0:02:05.7]} 39... Rf1+ {[%clk 0:00:10.3]} 40.
Kh2 {[%clk 0:02:06.3]} 40... Ra1 {[%clk 0:00:10.8]} 41. Rf3 {[%clk 0:02:04.1]}
41... Bc4 {[%clk 0:00:10.4]} 42. h5 {[%clk 0:02:04.7]} 42... Rxa3 {[%clk
0:00:10]} 43. h6 {[%clk 0:02:05.4]} 43... Ra5 {[%clk 0:00:09.2]} 44. Rh8 {[%clk
0:01:58.2]} 44... Rh5+ {[%clk 0:00:08.5]} 45. Rh3 {[%clk 0:01:58.2]} 45... Rg5
{[%clk 0:00:07.6]} 46. h7 {[%clk 0:01:56.7]} 46... Bd5 {[%clk 0:00:07.9]} 47.
Rg8 {[%clk 0:01:55.8]} 1-0